bitfinex/quotes_BTCUSD_20220212
["timestamp","ask_amount","ask_price","bid_price","bid_amount"]
[1644666143620,0.001,42287.0,42284.0,0.62611289]
[1644666143820,0.0041,42292.0,42285.0,0.75]
[1644666144021,0.0041,42292.0,42284.0,0.72611289]
[1644666144022,0.0031,42292.0,42287.0,0.75]
[1644666144258,0.0031,42292.0,42290.0,0.08715105]
[1644666144451,0.0021,42293.0,42291.0,0.0473]
[1644666144649,0.002,42297.0,42292.0,1.01995835]
[1644666144850,0.002,42297.0,42293.0,0.0473]
[1644666145050,0.002,42297.0,42293.0,0.23522658]
[1644666145552,0.002,42297.0,42293.0,0.0473]
[1644666145751,0.002,42297.0,42294.0,0.20620989]
[1644666145949,0.16497286,42292.0,42291.0,0.36844682]
[1644666146150,0.16497286,42292.0,42291.0,0.71606213]
[1644666146753,0.16497286,42292.0,42291.0,0.77516613]
[1644666147155,0.16497286,42292.0,42291.0,0.47485082]
[1644666147353,0.21497286,42292.0,42291.0,0.70891965]
[1644666147553,0.21497286,42292.0,42291.0,0.71398169]
[1644666147753,0.21497286,42292.0,42291.0,0.70844303]
[1644666147998,0.21497286,42292.0,42291.0,0.41574982]
[1644666150100,0.003,42295.0,42291.0,0.41724099]
[1644666150302,0.001,42296.0,42295.0,7.14731178]
[1644666150600,0.001,42296.0,42295.0,7.19461178]
[1644666151002,0.001,42296.0,42295.0,7.38242605]
[1644666153148,0.001,42296.0,42295.0,7.19461178]
[1644666153348,0.001,42296.0,42295.0,7.3824256]
[1644666154556,0.001,42296.0,42295.0,7.38391452]
[1644666156000,0.00370404,42298.0,42296.0,0.84968797]
[1644666156201,0.00370404,42298.0,42296.0,0.90392058]
[1644666156402,0.00370404,42298.0,42296.0,1.04421582]
[1644666156602,0.0032,42298.0,42296.0,1.04421582]
[1644666157005,0.0032,42298.0,42296.0,1.23901403]
[1644666157210,0.0032,42298.0,42296.0,1.32435331]
[1644666157404,0.0032,42298.0,42297.0,0.18781382]
[1644666157603,0.0032,42298.0,42297.0,0.23511382]
[1644666158208,0.0032,42298.0,42297.0,0.57626187]
[1644666158406,0.0032,42298.0,42297.0,0.67626187]
[1644666158808,0.0002332,42298.0,42297.0,0.67626187]
[1644666160155,0.012,42299.0,42298.0,0.75]
[1644666160156,0.0110032,42299.0,42298.0,0.75]
[1644666160359,0.0110032,42299.0,42298.0,1.24140447]
[1644666160556,0.0110032,42299.0,42298.0,1.42921829]
[1644666160756,0.00050402,42300.0,42299.0,0.75]
[1644666160956,0.00050402,42300.0,42299.0,1.14043059]
[1644666161156,0.00050402,42300.0,42299.0,1.61689197]
[1644666161355,0.00025403,42302.0,42299.0,1.61689197]
[1644666161555,0.00125403,42303.0,42299.0,1.61689197]
[1644666161754,0.00050401,42302.0,42300.0,0.18781382]
[1644666161960,0.00050401,42302.0,42301.0,0.42858555]
[1644666162359,0.00050401,42302.0,42301.0,0.52858555]
[1644666162655,0.001,42303.0,42301.0,0.52858555]
[1644666162855,0.001,42303.0,42302.0,0.32308612]
[1644666163099,0.001,42303.0,42302.0,0.37038612]
[1644666163298,0.001,42303.0,42302.0,0.47038612]
[1644666164799,0.001,42303.0,42302.0,0.64762412]
[1644666166103,0.00125403,42305.0,42303.0,0.75]
[1644666166404,0.00050447,42305.0,42304.0,0.42165624]
[1644666166609,0.00050447,42305.0,42304.0,0.62353364]
[1644666166862,0.00050447,42305.0,42304.0,0.9848047]
[1644666167264,0.00050447,42305.0,42304.0,0.79699088]
[1644666167463,0.00025403,42308.0,42304.0,0.9848047]
[1644666167665,0.01125403,42309.0,42307.0,0.2992065]
[1644666167862,0.00025403,42308.0,42307.0,0.2992065]
[1644666168062,0.011,42309.0,42307.0,0.3465065]
[1644666169766,0.011,42309.0,42308.0,0.29420332]
[1644666169965,0.011,42309.0,42308.0,0.45964732]
[1644666170273,0.011,42309.0,42308.0,0.55964732]
[1644666172203,0.011,42309.0,42308.0,0.56081993]
[1644666172400,0.011,42309.0,42308.0,0.74863375]
[1644666172603,0.011,42309.0,42308.0,0.56081993]
[1644666172806,0.011,42309.0,42308.0,0.74863375]
[1644666173004,0.8798,42321.0,42308.0,0.74863375]
[1644666173005,0.20132617,42334.0,42311.0,0.75]
[1644666173207,0.001,42338.0,42320.0,0.05]
[1644666173405,0.001,42338.0,42323.0,0.5913]
[1644666173610,0.5723,42345.0,42323.0,0.5913]
[1644666173611,0.00035178,42360.0,42327.0,0.15]
[1644666173807,0.00035178,42360.0,42325.0,0.75]
[1644666173808,0.0019178,42360.0,42353.0,0.24605457]
[1644666174009,0.0019178,42360.0,42354.0,0.0473]
[1644666174267,0.0019178,42360.0,42354.0,0.0463]
[1644666174268,0.05,42357.0,42354.0,0.0463]
[1644666174459,0.3,42356.0,42354.0,0.0463]
[1644666174661,0.00166234,42360.0,42355.0,0.52996613]
[1644666174860,0.001,42355.0,42351.0,0.1]
[1644666175059,0.00070356,42362.0,42359.0,0.5913]
[1644666175260,0.00070356,42362.0,42360.0,0.0473]
[1644666175863,0.08267902,42369.0,42360.0,0.0473]
[1644666175864,0.05,42363.0,42360.0,0.0473]
[1644666176060,0.00140712,42363.0,42360.0,0.0473]
[1644666176660,0.63826353,42362.0,42360.0,0.0473]
[1644666176860,0.333355,42361.0,42360.0,0.0473]
[1644666177059,0.30490853,42362.0,42360.0,0.0473]
[1644666177262,0.30490853,42362.0,42349.0,0.0473]
[1644666178207,0.30490853,42362.0,42350.0,0.03694737]
[1644666178208,0.25934161,42355.0,42350.0,0.03694737]
[1644666178408,0.08067272,42353.0,42350.0,0.03694737]
[1644666178606,0.08067272,42353.0,42349.0,0.09260908]
[1644666178806,0.08067272,42353.0,42349.0,0.0473]
[1644666179005,0.25934161,42355.0,42354.0,0.16134544]
[1644666179305,0.00050733,42358.0,42354.0,0.16134544]
[1644666179506,0.00140712,42360.0,42354.0,0.16134544]
[1644666179707,0.00050734,42357.0,42354.0,0.16134544]
[1644666180309,0.22685452,42357.0,42354.0,0.2016535]
[1644666180709,0.22634718,42357.0,42354.0,0.16134544]
[1644666180908,0.00050733,42358.0,42354.0,0.16134544]
[1644666181311,0.00140712,42360.0,42354.0,0.16134544]
[1644666181312,0.00140712,42360.0,42356.0,0.75]
[1644666181510,0.00140712,42360.0,42359.0,0.06458309]
[1644666181757,9.314e-05,42361.0,42359.0,0.17088309]
[1644666181953,9.314e-05,42361.0,42360.0,0.75]
[1644666182253,9.314e-05,42361.0,42360.0,0.0473]
[1644666184251,0.10009314,42361.0,42360.0,0.0473]
[1644666184453,0.10009314,42361.0,42360.0,0.106319]
[1644666184652,0.10009314,42361.0,42360.0,0.0473]
[1644666189653,0.10009314,42361.0,42360.0,0.106321]
[1644666190457,0.10009314,42361.0,42360.0,0.0473]
[1644666191452,0.10009314,42361.0,42360.0,0.10632]
[1644666191654,0.10009314,42361.0,42360.0,0.0473]
[1644666192254,0.33016644,42361.0,42360.0,0.0473]
[1644666192653,0.33016644,42361.0,42359.0,0.00148877]
[1644666193099,0.33042201,42361.0,42359.0,0.00148877]
[1644666193301,0.33016644,42361.0,42359.0,0.00148877]
[1644666194101,0.38016644,42361.0,42359.0,0.00148877]
[1644666194403,0.38042201,42361.0,42359.0,0.00148877]
[1644666194701,0.38042201,42361.0,42354.0,0.16134544]
[1644666194702,0.13906315,42359.0,42354.0,0.16134544]
[1644666195502,0.13931872,42359.0,42354.0,0.16134544]
[1644666195703,0.00025557,42359.0,42354.0,0.16134544]
[1644666195901,0.00076367,42360.0,42354.0,0.38475083]
[1644666196104,0.00025557,42359.0,42354.0,0.16134544]
[1644666196305,0.00025557,42360.0,42354.0,0.16134544]
[1644666196504,0.00025557,42359.0,42354.0,0.16134544]
[1644666196756,0.00076367,42360.0,42355.0,0.059025]
[1644666196952,0.00025557,42359.0,42355.0,0.059025]
[1644666197153,0.00025557,42359.0,42354.0,0.16134544]
[1644666197154,0.07099339,42359.0,42354.0,0.16134544]
[1644666197353,0.12124896,42359.0,42354.0,0.16134544]
[1644666197554,0.22124896,42359.0,42354.0,0.16134544]
[1644666197754,0.22099339,42359.0,42355.0,0.059027]
[1644666197954,0.22124896,42359.0,42355.0,0.059027]
[1644666198152,0.22124896,42359.0,42354.0,0.16134544]
[1644666198356,0.15025557,42359.0,42354.0,0.16134544]
[1644666198956,0.33016644,42361.0,42359.0,0.30076671]
[1644666198957,0.00076367,42360.0,42359.0,0.30076671]
[1644666199152,0.0005081,42360.0,42359.0,0.30076671]
[1644666199355,0.08461125,42360.0,42359.0,0.30076671]
[1644666199954,0.08410315,42360.0,42359.0,0.30076671]
[1644666204451,0.06984323,42360.0,42359.0,0.30076671]
[1644666205056,0.06991758,42360.0,42359.0,0.3022534]
[1644666206055,0.01443202,42361.0,42359.0,0.3022534]
[1644666206056,0.31703717,42361.0,42359.0,0.3022534]
[1644666206252,0.31729275,42361.0,42359.0,0.3022534]
[1644666208601,0.31729275,42361.0,42359.0,0.2972534]
[1644666209003,0.31729275,42361.0,42344.0,0.05]
[1644666209004,0.13541691,42354.0,42344.0,0.05]
[1644666209209,0.333355,42346.0,42340.0,0.5]
[1644666209416,0.08263,42349.0,42328.0,0.05]
[1644666209703,0.10025558,42346.0,42335.0,0.00050787]
[1644666209901,0.1,42346.0,42335.0,0.00050787]
[1644666210105,0.05,42346.0,42338.0,0.24629003]
[1644666210305,0.1671,42352.0,42338.0,0.24629003]
[1644666210306,0.00025558,42348.0,42342.0,0.05]
[1644666210503,0.00025558,42346.0,42343.0,0.06458309]
[1644666210703,0.3,42352.0,42338.0,0.19629003]
[1644666210704,0.00025558,42351.0,42338.0,0.19629003]
[1644666210906,0.1605,42358.0,42338.0,0.19629003]
[1644666210907,0.00025558,42354.0,42338.0,0.19629003]
[1644666211103,0.2299651,42349.0,42345.0,0.1986083]
[1644666211305,0.2299651,42349.0,42337.0,0.06458309]
[1644666211505,0.2299651,42349.0,42340.0,0.059045]
[1644666211762,0.28022068,42349.0,42337.0,0.11458309]
[1644666211959,0.2799651,42349.0,42337.0,0.06458309]
[1644666212156,0.28022068,42349.0,42342.0,0.20921263]
[1644666212357,0.05025558,42349.0,42342.0,0.20921263]
[1644666212559,0.05025558,42349.0,42344.0,0.05]
[1644666212758,0.05,42349.0,42344.0,0.05]
[1644666213159,0.05,42349.0,42342.0,0.30921263]
[1644666213562,0.05025558,42349.0,42342.0,0.30921263]
[1644666214260,0.05025558,42349.0,42342.0,0.20921263]
[1644666214464,0.05025558,42349.0,42344.0,0.05]
[1644666214465,0.05,42349.0,42344.0,0.05]
[1644666214660,0.00025558,42351.0,42347.0,0.05]
[1644666214861,0.00025558,42349.0,42348.0,0.06188309]
[1644666215059,0.00025558,42357.0,42348.0,0.0973]
[1644666215259,0.00057446,42360.0,42348.0,0.0973]
[1644666215260,0.00025558,42359.0,42348.0,0.0973]
[1644666215502,0.26864593,42361.0,42353.0,0.20801929]
[1644666215704,0.00025558,42359.0,42353.0,0.20801929]
[1644666215905,0.00050759,42360.0,42353.0,0.20801929]
[1644666216205,0.00025558,42359.0,42353.0,0.20801929]
[1644666216404,0.00050759,42360.0,42353.0,0.20801929]
[1644666216604,0.00025558,42359.0,42353.0,0.20801929]
[1644666216804,0.07393551,42364.0,42353.0,0.20801929]
[1644666217010,0.00050762,42360.0,42358.0,0.05]
[1644666217205,0.00050762,42360.0,42353.0,0.5055882]
[1644666217206,0.00050762,42360.0,42356.0,0.20026891]
[1644666217405,0.00050762,42360.0,42357.0,0.20026891]
[1644666217605,0.00050762,42360.0,42356.0,0.20026891]
[1644666217805,0.03,42373.0,42355.0,0.20026891]
[1644666217806,0.21957136,42366.0,42355.0,0.20026891]
[1644666218004,0.21957136,42366.0,42356.0,0.20026891]
[1644666218005,0.06667269,42365.0,42356.0,0.20026891]
[1644666218206,0.00050763,42360.0,42357.0,0.20026891]
[1644666218405,0.00050763,42360.0,42357.0,0.24756891]
[1644666218808,0.00050763,42360.0,42357.0,0.0473]
[1644666219257,0.0656899,42364.0,42357.0,0.24756891]
[1644666219452,0.00050763,42361.0,42357.0,0.24756891]
[1644666219656,0.00138795,42359.0,42357.0,0.24756891]
[1644666219851,0.00050763,42361.0,42359.0,0.0027759]
[1644666220054,0.00025558,42360.0,42359.0,0.0027759]
[1644666220254,0.00025558,42362.0,42359.0,0.0027759]
[1644666220453,0.00050762,42362.0,42359.0,0.0027759]
[1644666221162,0.0007632,42362.0,42361.0,0.25026891]
[1644666221356,0.00050762,42362.0,42361.0,0.59660522]
[1644666221555,6.741e-05,42363.0,42361.0,0.64390522]
[1644666221755,6.741e-05,42363.0,42362.0,0.24757852]
[1644666221956,6.741e-05,42363.0,42362.0,0.54584264]
[1644666222158,6.741e-05,42363.0,42362.0,0.29487852]
[1644666222355,6.741e-05,42363.0,42362.0,0.39487852]
[1644666223210,6.741e-05,42363.0,42362.0,0.69035189]
[1644666223610,6.741e-05,42363.0,42362.0,0.99131601]
[1644666223812,6.741e-05,42363.0,42362.0,0.39826412]
[1644666224012,6.741e-05,42363.0,42362.0,0.34721629]
[1644666224210,6.741e-05,42363.0,42362.0,0.1473]
[1644666224611,6.741e-05,42363.0,42362.0,0.24721629]
[1644666225211,6.741e-05,42363.0,42362.0,0.04859275]
[1644666225410,6.741e-05,42363.0,42362.0,0.24850904]
[1644666226855,6.741e-05,42363.0,42362.0,0.04859275]
[1644666227257,6.741e-05,42363.0,42362.0,0.24854554]
[1644666227655,6.741e-05,42363.0,42362.0,0.04859275]
[1644666228056,6.741e-05,42363.0,42362.0,0.24854554]
[1644666228255,6.741e-05,42363.0,42362.0,0.04859275]
[1644666229758,6.741e-05,42363.0,42362.0,0.0473]
[1644666230158,0.1006088,42365.0,42362.0,0.0473]
[1644666230358,0.10035322,42365.0,42362.0,0.0473]
[1644666231009,0.10006741,42365.0,42362.0,0.0473]
[1644666231813,0.10006741,42365.0,42361.0,0.25140107]
[1644666231814,0.47561255,42364.0,42361.0,0.00144828]
[1644666232015,0.21092739,42364.0,42361.0,0.00144828]
[1644666232412,0.0736292,42363.0,42361.0,0.00144828]
[1644666234116,0.29670256,42362.0,42361.0,0.00144828]
[1644666234555,0.29670256,42362.0,42359.0,0.0027759]
[1644666236257,0.33278515,42364.0,42363.0,0.16526268]
[1644666238303,0.28474661,42364.0,42363.0,0.16526268]
[1644666239506,0.28474661,42364.0,42363.0,0.1667091]
[1644666240105,0.18474661,42364.0,42363.0,0.1667091]
[1644666240708,0.50881777,42372.0,42363.0,0.1667091]
[1644666240709,0.5068,42372.0,42363.0,0.1667091]
[1644666240907,0.00050452,42366.0,42363.0,0.1667091]
[1644666241957,0.03,42373.0,42363.0,0.1667091]
[1644666242159,0.00050451,42367.0,42363.0,0.1667091]
[1644666243162,0.025,42373.0,42363.0,0.1667091]
[1644666243359,0.00050451,42367.0,42363.0,0.1667091]
[1644666244360,0.02701774,42373.0,42363.0,0.1667091]
[1644666244361,1.94501543,42368.0,42363.0,0.1667091]
[1644666244559,0.00050451,42367.0,42363.0,0.16526268]
[1644666245504,0.059037,42372.0,42363.0,0.16526268]
[1644666245710,0.00050451,42367.0,42363.0,0.16526268]
[1644666246707,0.07026192,42368.0,42363.0,0.16526268]
[1644666246906,0.00050451,42367.0,42363.0,0.16526268]
[1644666247308,0.00050451,42367.0,42365.0,0.05]
[1644666247707,0.10050451,42367.0,42365.0,0.05]
[1644666247909,0.1,42367.0,42363.0,0.16526268]
[1644666249486,0.10050451,42367.0,42365.0,0.00165092]
[1644666250280,0.38582829,42367.0,42365.0,0.00165092]
[1644666250882,0.1,42367.0,42365.0,0.00165092]
[1644666262812,0.00046659,42368.0,42365.0,0.00165092]
[1644666263411,2.47045251,42367.0,42365.0,0.00165092]
[1644666263812,0.00046659,42369.0,42365.0,0.00165092]
[1644666264015,0.00046659,42369.0,42365.0,0.00154919]
[1644666264758,0.19142928,42371.0,42365.0,0.00154919]
[1644666264958,0.0004666,42369.0,42365.0,0.00154919]
[1644666265959,0.19142928,42371.0,42365.0,0.00154919]
[1644666266159,0.07244167,42372.0,42371.0,0.34441742]
[1644666266459,0.29932919,42372.0,42371.0,0.34441742]
[1644666267458,0.63268419,42372.0,42371.0,0.34441742]
[1644666267657,0.29932919,42372.0,42371.0,0.34441742]
[1644666270209,0.63268419,42372.0,42371.0,0.34595966]
[1644666270412,0.29932919,42372.0,42371.0,0.34595966]
[1644666271762,0.29932919,42372.0,42364.0,7.14731178]
[1644666271763,0.13541691,42368.0,42364.0,7.14731178]
[1644666271966,0.451458,42367.0,42364.0,7.14731178]
[1644666272165,0.333355,42365.0,42364.0,7.14731178]
[1644666272865,0.53661788,42365.0,42364.0,7.14731178]
[1644666274264,0.92632723,42365.0,42364.0,6.2469297]
[1644666274469,0.97362723,42365.0,42364.0,6.2469297]
[1644666275512,1.04119457,42365.0,42364.0,6.2469297]
[1644666279960,1.04231793,42365.0,42364.0,6.2469297]
[1644666280161,0.75260858,42365.0,42364.0,6.2469297]
[1644666280462,1.02435963,42365.0,42364.0,6.2469297]
[1644666281263,0.75260858,42365.0,42364.0,6.2469297]
[1644666281468,0.68504124,42365.0,42364.0,6.2469297]
[1644666283418,0.68504124,42365.0,42364.0,6.2419297]
[1644666284020,0.73504124,42365.0,42364.0,6.2419297]
[1644666284618,0.63504124,42365.0,42364.0,6.2419297]
[1644666284822,0.73504124,42365.0,42364.0,6.2419297]
[1644666285222,0.38447836,42365.0,42364.0,6.2419297]
[1644666285421,0.383355,42365.0,42364.0,6.2419297]
[1644666285622,0.333355,42365.0,42364.0,6.2419297]
[1644666286861,0.383355,42365.0,42364.0,6.2419297]
[1644666288662,0.333355,42365.0,42364.0,6.2419297]
[1644666289760,0.383355,42365.0,42364.0,6.2419297]
[1644666295969,0.428355,42365.0,42364.0,6.2419297]
[1644666296170,0.025,42373.0,42368.0,0.10483962]
[1644666296371,0.333244,42371.0,42368.0,0.10483962]
[1644666296570,0.383244,42371.0,42369.0,0.26864377]
[1644666296770,0.333244,42370.0,42369.0,0.26864377]
[1644666297069,0.60200615,42370.0,42369.0,0.26864377]
[1644666297270,0.333244,42370.0,42369.0,0.26864377]
[1644666298317,0.05,42370.0,42369.0,0.26864377]
[1644666298516,0.09,42372.0,42369.0,0.26864377]
[1644666298717,0.09,42372.0,42370.0,0.332726]
[1644666298718,0.09046605,42372.0,42370.0,0.332726]
[1644666298917,0.09046605,42372.0,42369.0,0.31864377]
[1644666299516,0.09,42372.0,42369.0,0.31864377]
[1644666300115,0.14,42372.0,42369.0,0.32077339]
[1644666300818,0.333244,42371.0,42369.0,0.27077339]
[1644666301417,0.14,42372.0,42369.0,0.27077339]
[1644666301618,1.94645644,42371.0,42370.0,0.332727]
[1644666301863,0.14,42372.0,42369.0,0.27077339]
[1644666302463,0.19,42372.0,42369.0,0.27077339]
[1644666302664,0.14,42372.0,42370.0,0.332726]
[1644666303064,0.14,42372.0,42369.0,0.27077339]
[1644666304867,0.14,42372.0,42370.0,0.332726]
[1644666305369,0.02546471,42373.0,42370.0,0.332726]
[1644666305623,0.025,42373.0,42372.0,0.332708]
[1644666305827,0.02546471,42373.0,42372.0,0.332708]
[1644666306222,0.00909091,42383.0,42374.0,0.75]
[1644666306426,0.00025574,42384.0,42383.0,0.57439154]
[1644666306627,0.00025574,42387.0,42383.0,0.57439154]
[1644666306823,0.00025574,42387.0,42386.0,0.05]
[1644666307021,0.00025574,42387.0,42386.0,0.382577]
[1644666307222,0.02002413,42388.0,42387.0,0.332569]
[1644666307523,0.01502413,42388.0,42387.0,0.332569]
[1644666308322,0.01502413,42388.0,42383.0,0.29178554]
[1644666308323,0.42342111,42388.0,42383.0,0.29178554]
[1644666308526,0.42342111,42388.0,42377.0,0.01458309]
[1644666308527,0.333244,42387.0,42377.0,0.05]
[1644666308725,0.09017711,42388.0,42377.0,0.05]
[1644666308726,0.12043285,42388.0,42378.0,0.332647]
[1644666308924,0.00025574,42387.0,42378.0,0.332647]
[1644666309276,0.22043285,42388.0,42383.0,0.20372444]
[1644666309474,0.22043285,42388.0,42384.0,0.332595]
[1644666309475,0.0004674,42385.0,42384.0,0.332595]
[1644666310073,0.0004674,42385.0,42384.0,0.33419438]
[1644666310373,0.00025574,42387.0,42384.0,0.33419538]
[1644666310577,0.22017711,42388.0,42384.0,0.33419538]
[1644666310578,0.14527987,42388.0,42384.0,0.00159938]
[1644666310774,0.00046738,42387.0,42384.0,0.00159938]
[1644666311675,0.14527987,42388.0,42384.0,0.00159938]
[1644666311875,0.14574487,42388.0,42384.0,0.00159938]
[1644666312278,0.059015,42387.0,42384.0,0.00159938]
[1644666312476,0.07118902,42386.0,42384.0,0.00159938]
[1644666312678,0.17118902,42386.0,42384.0,0.00159938]
[1644666312877,0.12118902,42386.0,42384.0,0.00159938]
[1644666313121,0.333244,42385.0,42384.0,0.00159938]
[1644666313319,0.433244,42385.0,42384.0,0.00159938]
[1644666313519,0.1,42385.0,42384.0,0.33419538]
[1644666313917,0.1,42385.0,42384.0,0.00159938]
[1644666314217,0.1,42385.0,42384.0,0.33419538]
[1644666314416,0.1,42385.0,42384.0,0.53791982]
[1644666314618,0.17118902,42386.0,42384.0,0.53791982]
[1644666314919,0.17118902,42386.0,42384.0,0.53632044]
[1644666315117,0.17118902,42386.0,42384.0,0.53631944]
[1644666316319,0.383244,42385.0,42384.0,0.20372444]
[1644666316516,0.433244,42385.0,42384.0,0.20372444]
[1644666316772,0.17118902,42386.0,42384.0,0.20372444]
[1644666317365,0.16118902,42386.0,42384.0,0.20372444]
[1644666317966,0.10473491,42387.0,42384.0,0.20372444]
[1644666318166,0.10447917,42387.0,42384.0,0.20372444]
[1644666318369,0.333244,42386.0,42384.0,0.20372444]
[1644666319166,0.05,42386.0,42384.0,0.20372444]
[1644666319367,0.08008538,42385.0,42383.0,0.00159929]
[1644666319566,0.13008538,42385.0,42383.0,0.00159929]
[1644666319767,0.18008538,42385.0,42384.0,0.20372444]
[1644666319968,0.51332938,42385.0,42384.0,0.20372444]
[1644666320367,2.70222215,42385.0,42384.0,0.20372444]
[1644666320827,2.69722215,42385.0,42384.0,0.20372444]
[1644666321826,0.17508538,42385.0,42384.0,0.20372444]
[1644666322034,0.50832938,42385.0,42384.0,0.20372444]
[1644666322528,0.60832938,42385.0,42384.0,0.20372444]
[1644666322731,0.60832938,42385.0,42383.0,0.00159929]
[1644666322732,0.75,42384.0,42383.0,0.00159929]
[1644666322929,1.083244,42384.0,42377.0,0.00046526]
[1644666323127,0.333244,42381.0,42377.0,0.00046526]
[1644666323328,0.380544,42380.0,42377.0,0.00046526]
[1644666323730,0.333244,42377.0,42366.0,0.4676]
[1644666323929,0.392283,42377.0,42376.0,0.00046524]
[1644666324128,0.542283,42377.0,42376.0,0.00046524]
[1644666324873,0.542283,42377.0,42368.0,0.15483962]
[1644666325072,0.333244,42375.0,42374.0,0.00046525]
[1644666325278,0.580544,42375.0,42374.0,0.00046525]
[1644666325476,0.33541691,42371.0,42364.0,6.2419297]
[1644666325673,0.75,42372.0,42364.0,6.2419297]
[1644666325674,0.059059,42369.0,42364.0,6.2419297]
[1644666325878,0.380544,42368.0,42364.0,6.2419297]
[1644666326076,0.380544,42368.0,42364.0,6.2319297]
[1644666326274,0.63015491,42367.0,42364.0,6.2319297]
[1644666326475,0.0473,42366.0,42364.0,6.2319297]
[1644666326675,0.333244,42365.0,42364.0,6.2319297]
[1644666326873,0.480544,42365.0,42364.0,6.2319297]
[1644666327273,0.530544,42365.0,42364.0,6.2319297]
[1644666327674,0.822744,42365.0,42364.0,6.2319297]
[1644666328118,0.822744,42365.0,42364.0,5.2336297]
[1644666328318,0.881803,42365.0,42364.0,5.2336297]
[1644666328518,0.881803,42365.0,42364.0,4.8792457]
[1644666329117,0.905543,42365.0,42364.0,4.5248307]
[1644666330718,0.905543,42365.0,42364.0,4.52627426]
[1644666334172,0.846484,42365.0,42364.0,4.52627426]
[1644666335172,0.905544,42365.0,42364.0,4.52627426]
[1644666337024,0.905544,42365.0,42364.0,4.5249091]
[1644666340469,0.90651372,42365.0,42364.0,4.52346554]
[1644666342372,0.90651372,42365.0,42364.0,4.16902054]
[1644666342572,0.61431372,42365.0,42364.0,3.81456754]
[1644666342772,1.86931372,42365.0,42364.0,3.46012454]
[1644666343017,2.36931372,42365.0,42364.0,2.49325324]
[1644666343221,2.36931372,42365.0,42350.0,1.0]
[1644666343222,0.2,42363.0,42362.0,0.00046451]
[1644666343420,0.06894481,42352.0,42351.0,0.0001]
[1644666343619,0.50846881,42352.0,42350.0,1.0]
[1644666343821,0.333244,42351.0,42350.0,1.0]
[1644666344019,0.20908,42352.0,42351.0,0.15281331]
[1644666344221,0.589649,42352.0,42351.0,0.15281331]
[1644666344422,0.530569,42352.0,42351.0,0.15281331]
[1644666345221,0.580569,42352.0,42351.0,0.15281331]
[1644666347275,0.77149049,42352.0,42351.0,0.15281331]
[1644666347969,0.81649049,42352.0,42351.0,0.15281331]
[1644666348768,0.84023049,42352.0,42351.0,0.15291331]
[1644666349970,0.649309,42352.0,42351.0,0.15291331]
[1644666350524,0.52922491,42352.0,42351.0,0.15291331]
[1644666350727,0.71737751,42352.0,42351.0,0.15291331]
[1644666350926,0.71737751,42352.0,42351.0,0.15309936]
[1644666351326,0.61737751,42352.0,42351.0,0.15309936]
[1644666351527,0.61737751,42352.0,42351.0,0.15299936]
[1644666352139,0.66737751,42352.0,42351.0,0.15299936]
[1644666352431,0.70874921,42352.0,42351.0,0.15299936]
[1644666352825,0.66737751,42352.0,42351.0,0.15299936]
[1644666353027,0.47922491,42352.0,42351.0,0.15299936]
[1644666353327,0.52922491,42352.0,42351.0,0.15299936]
[1644666353929,0.56664918,42352.0,42351.0,0.15299936]
[1644666354125,0.52922491,42352.0,42351.0,0.15299936]
[1644666355979,0.52922491,42352.0,42351.0,0.05471247]
[1644666355980,0.73708482,42352.0,42351.0,0.05471247]
[1644666356174,0.78450792,42352.0,42351.0,0.05471247]
[1644666356572,0.72350904,42352.0,42351.0,0.05471247]
[1644666356769,0.56598531,42352.0,42351.0,0.05471247]
[1644666356972,1.40778155,42352.0,42351.0,0.05471247]
[1644666357170,1.21860548,42352.0,42351.0,0.05471247]
[1644666357371,1.25960025,42352.0,42351.0,0.05471247]
[1644666358017,1.21860548,42352.0,42351.0,0.05471247]
[1644666360423,1.16860548,42352.0,42351.0,0.05471247]
[1644666361970,0.97922491,42352.0,42351.0,0.05471247]
[1644666362269,1.02922491,42352.0,42351.0,0.05471247]
[1644666362470,1.07542108,42352.0,42351.0,0.05471247]
[1644666362670,1.02922491,42352.0,42351.0,0.05471247]
[1644666363976,1.142357,42351.0,42350.0,1.0]
[1644666364175,1.642357,42351.0,42350.0,1.00019571]
[1644666364372,1.713397,42351.0,42350.0,1.00019571]
[1644666364574,3.03914062,42351.0,42350.0,1.00019571]
[1644666364775,3.03914062,42351.0,42350.0,0.26643695]
[1644666364972,1.083269,42350.0,42348.0,0.00050175]
[1644666365174,0.74352883,42349.0,42348.0,0.00050175]
[1644666365379,1.17679783,42349.0,42348.0,0.00050175]
[1644666365621,1.41162807,42349.0,42348.0,0.00050175]
[1644666365820,0.05909,42347.0,42337.0,0.0001]
[1644666366021,0.510534,42347.0,42346.0,0.00050176]
[1644666366220,1.34940679,42347.0,42346.0,0.00050176]
[1644666366421,1.257834,42347.0,42346.0,0.00050176]
[1644666366622,0.333269,42345.0,42342.0,0.03]
[1644666366823,0.0473,42344.0,42342.0,0.03]
[1644666367024,0.357009,42343.0,42342.0,0.03]
[1644666367222,0.504309,42343.0,42342.0,0.03]
[1644666367423,0.604309,42343.0,42342.0,0.03]
[1644666368423,0.7953443,42343.0,42342.0,0.03]
[1644666368825,0.80888475,42343.0,42342.0,0.03]
[1644666369472,0.89675012,42343.0,42342.0,0.03]
[1644666369872,0.69217437,42343.0,42342.0,0.03]
[1644666370075,1.149309,42343.0,42342.0,0.03]
[1644666371475,0.649309,42343.0,42342.0,0.03]
[1644666374527,1.149309,42343.0,42342.0,0.03]
[1644666374729,2.59643583,42343.0,42342.0,0.03]
[1644666375934,1.00572111,42342.0,42340.0,0.00050179]
[1644666376234,2.02197128,42341.0,42331.0,0.01]
[1644666376432,1.706495,42339.0,42331.0,0.01]
[1644666376634,0.059113,42336.0,42331.0,0.01]
[1644666376873,0.380569,42335.0,42331.0,0.01]
[1644666377076,0.5,42333.0,42331.0,0.01]
[1644666377276,0.404309,42332.0,42331.0,0.01]
[1644666377472,0.383335,42332.0,42331.0,0.01]
[1644666377873,0.483335,42332.0,42331.0,0.01]
[1644666378072,0.983335,42332.0,42331.0,0.01]
[1644666378272,1.066064,42332.0,42331.0,0.01]
[1644666379474,1.113364,42332.0,42331.0,0.01]
[1644666381429,0.606409,42332.0,42331.0,0.01]
[1644666381628,0.51,42332.0,42331.0,0.62618147]
[1644666381826,0.51,42332.0,42331.0,0.01029548]
[1644666382026,0.843335,42332.0,42331.0,0.21094058]
[1644666382626,0.751958,42332.0,42331.0,0.21094058]
[1644666382826,0.251958,42332.0,42331.0,0.21094058]
[1644666383724,0.301958,42332.0,42331.0,0.21094058]